fUSD/lending_fUSD_20250512
["ID","MTS","AMOUNT","RATE_DAILY","PERIOD"]
[360865000,1747081847088,-484.04,0.00013698,2]
[360865001,1747081847097,-400.0,0.00013698,2]
[360865002,1747081847107,-400.0,0.00013698,2]
[360865003,1747081847116,-191.64765153,0.00013698,2]
[360865004,1747081876471,500.0,0.00025,90]
[360865005,1747082289999,-194.16816099,0.00012,2]
[360865006,1747082295616,-208.84615131,0.00012,2]
[360865007,1747082307086,-96.9856877,0.00012,2]
[360865008,1747082599844,-203.0143123,0.00012,4]
[360865009,1747082607112,-193.9713754,0.00012,4]
[360865010,1747082622057,-230.26925622,0.00012,4]
[360865011,1747082637416,-225.208019,0.00012,4]
[360865012,1747082652607,-231.62544956,0.00012,4]
[360865013,1747082667122,-177.7386183,0.00012,4]
[360865014,1747082682161,-361.52812089,0.00011999,2]
[360865015,1747082692923,585.8,0.00010743,2]
[360865016,1747082697021,-110.6301116,0.00011999,2]
[360865017,1747082697046,-106.38190142,0.00012,4]
[360865018,1747082712079,-250.0,0.00012,4]
[360865019,1747082727782,-175.8605129,0.00012,4]
[360865020,1747082742105,-156.3394871,0.00012,4]
[360865021,1747082757157,-168.18210163,0.00012,4]
[360865022,1747082772084,-384.34380536,0.00012,4]
[360865023,1747082787025,-360.67283918,0.00012,4]
[360865024,1747082802093,-200.0,0.00012,4]
[360865025,1747082817650,-194.44188274,0.00012,4]
[360865026,1747082833221,-288.51136152,0.00012,4]
[360865036,1747082847068,-201.6893326,0.00012,4]
[360865037,1747082851474,150.0,0.00013699,7]
[360865038,1747082862704,-183.00488394,0.00011999,2]
[360865039,1747082877050,-18.68444866,0.00011999,2]
[360865040,1747082877075,-158.3606674,0.00012,4]
[360865041,1747082892371,-162.01,0.00011999,2]
[360865042,1747082907043,-15.03511606,0.00011999,2]
[360865043,1747082907066,-178.48230917,0.00012,4]
[360865044,1747082922103,-298.11223919,0.00012,4]
[360865045,1747082937057,-263.39531031,0.00012,4]
[360865046,1747082952107,-167.41426294,0.00012,4]
[360865047,1747082967104,-166.66315328,0.00012,4]
[360865048,1747082982094,-165.92258378,0.00012,4]
[360865049,1747082997087,-318.61391556,0.00012,4]
[360865055,1747083012751,-166.01117417,0.00011988,2]
[360865056,1747083027052,-325.61849025,0.00011988,2]
[360865057,1747083027075,-11.88393558,0.00012,4]
[360865068,1747083032237,-614.97,0.00012,4]
[360865069,1747083032285,-300.0,0.00012,4]
[360865070,1747083032296,-607.93136756,0.00012,4]
[360865071,1747083032510,-200.0,0.00012171,2]
[360865072,1747083032521,-200.0,0.000124,2]
[360865073,1747083032530,-2081.7,0.00012463,2]
[360865074,1747083032540,-242.500682,0.00012622,2]
[360865075,1747083032549,-250.0,0.00012685,2]
[360865076,1747083032558,-227.9,0.00012725,2]
[360865077,1747083032567,-300.0,0.00012728,2]
[360865078,1747083032577,-1111.89095044,0.00012728,2]
[360865183,1747083038236,-88.10904956,0.00012728,2]
[360865184,1747083038245,-300.0,0.00012729,2]
[360865185,1747083038254,-23617.62,0.0001273,2]
[360865186,1747083038263,-159.1,0.00012759,2]
[360865187,1747083038272,-1000.0,0.00012761,2]
[360865188,1747083038282,-170.96,0.00012786,2]
[360865189,1747083038291,-585.8,0.00013007,2]
[360865190,1747083038300,-166.05,0.00013095,2]
[360865191,1747083038309,-1393.87,0.00013141,2]
[360865192,1747083038318,-803.73,0.00013141,2]
[360865193,1747083038328,-200.0,0.000132,2]
[360865194,1747083038337,-200.0,0.000132,2]
[360865195,1747083038347,-200.0,0.000132,2]
[360865196,1747083038356,-803.73,0.000132,2]
[360865197,1747083038365,-467.75,0.000132,2]
[360865198,1747083038374,-617.0,0.000135,2]
[360865199,1747083038384,-1072.75770351,0.00013598,2]
[360865200,1747083038393,-300.24,0.000136,2]
[360865201,1747083038402,-162.56,0.000136,2]
[360865202,1747083038411,-457.29,0.000136,2]
[360865203,1747083038420,-173.2500639,0.00013608,2]
[360865204,1747083038430,-1632.37074841,0.00013627,2]
[360865205,1747083038439,-162.49009827,0.00013663,2]
[360865206,1747083038448,-207.4,0.00013664,2]
[360865207,1747083038457,-500.0,0.00013673,2]
[360865208,1747083038467,-507.04838419,0.00013673,2]
[360865209,1747083038476,-46142.86877826,0.00013691,2]
[360865210,1747083038525,-9578.06072568,0.00013691,2]
[360865215,1747083040888,-1612.85664498,0.00013691,2]
[360865216,1747083040903,-89396.79851768,0.00013691,2]
[360865217,1747083040915,-264.08836713,0.00013698,2]
[360865218,1747083040927,-400.0,0.00013698,2]
[360865219,1747083040938,-653.45,0.00013698,2]
[360865220,1747083040949,-183.75993526,0.00013698,2]
[360865221,1747083040959,-400.0,0.00013698,2]
[360865222,1747083040971,-400.0,0.00013698,2]
[360865223,1747083040984,-150.0,0.00013698,2]
[360865224,1747083040996,-400.0,0.00013698,2]
[360865225,1747083041007,-400.79007793,0.00013698,2]
[360865226,1747083041018,-540.63,0.00013698,2]
[360865227,1747083041029,-400.0,0.00013698,2]
[360865228,1747083041040,-400.0,0.00013698,2]
[360865229,1747083041051,-451.63601563,0.00013698,2]
[360865230,1747083041062,-477.75,0.00013698,2]
[360865231,1747083041074,-500.0,0.00013698,2]
[360865232,1747083041087,-400.0,0.00013698,2]
[360865233,1747083041098,-400.0,0.00013698,2]
[360865234,1747083041110,-500.0,0.00013698,2]
[360865235,1747083041120,-171.07844008,0.00013698,2]
[360865236,1747083041131,-400.0,0.00013698,2]
[360865237,1747083041143,-400.0,0.00013698,2]
[360865238,1747083041155,-400.0,0.00013698,2]
[360865239,1747083041166,-400.0,0.00013698,2]
[360865240,1747083041177,-500.0,0.00013698,2]
[360865241,1747083041189,-400.0,0.00013698,2]
[360865242,1747083041202,-400.0,0.00013698,2]
[360865243,1747083041213,-400.0,0.00013698,2]
[360865244,1747083041224,-400.0,0.00013698,2]
[360865245,1747083041235,-400.0,0.00013698,2]
[360865246,1747083041246,-541.78,0.00013698,2]
[360865247,1747083041256,-400.0,0.00013698,2]
[360865248,1747083041267,-400.0,0.00013698,2]
[360865249,1747083041278,-400.0,0.00013698,2]
[360865250,1747083041290,-196.06,0.00013698,2]
[360865251,1747083041301,-365.69,0.00013698,2]
[360865252,1747083041312,-400.0,0.00013698,2]
[360865253,1747083041323,-330.85,0.00013698,2]
[360865254,1747083041334,-440.2,0.00013698,2]
[360865255,1747083041345,-400.0,0.00013698,2]
[360865256,1747083041356,-400.0,0.00013698,2]
[360865257,1747083041367,-500.0,0.00013698,2]
[360865258,1747083041378,-392.18,0.00013698,2]
[360865259,1747083041389,-400.0,0.00013698,2]
[360865260,1747083041401,-400.0,0.00013698,2]
[360865261,1747083041413,-400.0,0.00013698,2]
[360865262,1747083041424,-400.0,0.00013698,2]
[360865263,1747083041434,-500.0,0.00013698,2]
[360865264,1747083041445,-400.0,0.00013698,2]
[360865265,1747083041457,-400.0,0.00013698,2]
[360865266,1747083041468,-400.0,0.00013698,2]
[360865267,1747083041479,-630.52,0.00013698,2]
[360865268,1747083041490,-561.77,0.00013698,2]
[360865269,1747083041502,-472.89,0.00013698,2]
[360865270,1747083041513,-461.11,0.00013698,2]
[360865271,1747083041523,-400.0,0.00013698,2]
[360865272,1747083041534,-400.0,0.00013698,2]
[360865273,1747083041546,-400.0,0.00013698,2]
[360865274,1747083041557,-974.65,0.00013698,2]
[360865275,1747083041568,-400.0,0.00013698,2]
[360865276,1747083041579,-1093.0,0.00013698,2]
[360865277,1747083041590,-400.0,0.00013698,2]
[360865278,1747083041600,-400.0,0.00013698,2]
[360865279,1747083041612,-400.0,0.00013698,2]
[360865280,1747083041623,-275.17,0.00013698,2]
[360865281,1747083041634,-259.47242031,0.00013698,2]
[360865282,1747083041645,-400.0,0.00013698,2]
[360865283,1747083041656,-151.0,0.00013699,2]
[360865284,1747083041668,-346.85,0.00013699,2]
[360865285,1747083041679,-200.0,0.00013699,2]
[360865286,1747083041690,-268.06465187,0.00013699,2]
[360865287,1747083041702,-150.0,0.00013699,2]
[360865288,1747083041713,-400.0,0.00013699,2]
[360865289,1747083041724,-400.0,0.00013699,2]
[360865290,1747083041735,-400.0,0.00013699,2]
[360865291,1747083041749,-400.0,0.00013699,2]
[360865292,1747083041759,-400.0,0.00013699,2]
[360865293,1747083041770,-400.0,0.00013699,2]
[360865294,1747083041781,-400.0,0.00013699,2]
[360865295,1747083041792,-400.0,0.00013699,2]
[360865296,1747083041803,-12827.3962247,0.00013699,2]
[360865297,1747083041815,-338.69,0.00013699,2]
[360865298,1747083041826,-400.0,0.00013699,2]
[360865299,1747083041839,-500.0,0.00013699,2]
[360865300,1747083041850,-500.0,0.00013699,2]
[360865301,1747083041860,-457.10719544,0.00013699,2]
[360865302,1747083041871,-185.58815421,0.00013699,2]
[360865303,1747083041883,-239.6,0.00013699,2]
[360865304,1747083041896,-400.0,0.00013699,2]
[360865305,1747083041908,-498.88,0.00013699,2]
[360865306,1747083041919,-151.0,0.00013699,2]
[360865307,1747083041930,-151.0,0.00013699,2]
[360865308,1747083041941,-151.0,0.00013699,2]
[360865309,1747083041953,-151.0,0.00013699,2]
[360865310,1747083041965,-151.0,0.00013699,2]
[360865311,1747083041976,-200.42418,0.00013699,2]
[360865312,1747083041988,-5451.486384,0.00013699,2]
[360865313,1747083041999,-584.36,0.00013699,2]
[360865314,1747083042010,-400.0,0.00013699,2]
[360865315,1747083042022,-565.52372825,0.00013699,2]
[360865316,1747083042033,-400.0,0.00013699,2]
[360865317,1747083042044,-151.0,0.00013699,2]
[360865318,1747083042056,-151.0,0.00013699,2]
[360865319,1747083042067,-938.0082768,0.000137,2]
[360865320,1747083042078,-162.56,0.000137,2]
[360865321,1747083042089,-452.54,0.000137,2]
[360865322,1747083042101,-150.12,0.000137,2]
[360865323,1747083042113,-1042.1,0.000137,2]
[360865324,1747083042124,-400.0,0.00013708,2]
[360865325,1747083042136,-1122.19,0.00013708,2]
[360865326,1747083042147,-1256.13,0.00013708,2]
[360865327,1747083042158,-400.0,0.00013708,2]
[360865328,1747083042170,-400.0,0.00013708,2]
[360865329,1747083042180,-1574.69,0.00013708,2]
[360865330,1747083042192,-1002.58,0.00013708,2]
[360865331,1747083042203,-400.0,0.00013708,2]
[360865332,1747083042214,-402.05011874,0.00013708,2]
[360865333,1747083042227,-3670.3,0.00013708,2]
[360865334,1747083042239,-151.0,0.00013708,2]
[360865335,1747083042250,-400.0,0.00013708,2]
[360865336,1747083042261,-953.96,0.00013708,2]
[360865337,1747083042272,-1649.39,0.00013708,2]
[360865338,1747083042284,-400.0,0.00013708,2]
[360865339,1747083042296,-27070.70855724,0.00013708,2]
[360865340,1747083042311,-640.08419563,0.00013708,2]
[360865347,1747083044193,-152.58,0.00013698,2]
[360865348,1747083044203,-608.83979969,0.00013708,2]
[360865353,1747083046339,-395.38420396,0.00013698,2]
[360865354,1747083046349,-400.0,0.00013698,2]
[360865355,1747083046359,-4255.01579604,0.00013708,2]
[360865357,1747083070823,-271.22108767,0.00011999,2]
[360865358,1747083074811,-228.77891233,0.00011999,2]
[360865359,1747083087595,-167.41426294,0.00011999,2]
[360865360,1747083102026,-237.5826801,0.00011999,2]
[360865361,1747083119510,-95.00305696,0.00011999,2]
[360865362,1747083119539,-216.70611356,0.00011999,2]
[360865363,1747083132629,-188.29082948,0.00011999,2]
[360865364,1747083147563,-95.00305696,0.00011999,2]
[360865365,1747083147591,-77.25025591,0.00011999,2]
[360865366,1747083162139,-156.0915832,0.00011999,2]
[360865367,1747083177102,-227.56911167,0.00011999,2]
[360865368,1747083192113,-272.43088833,0.00011998,2]
[360865369,1747083207067,-27.56911167,0.00011998,2]
[360865370,1747083207089,-156.59505273,0.00011998,2]
[360865371,1747083222589,-257.58890794,0.00011998,2]
[360865372,1747083222619,-6.59365224,0.00011998,2]
[360865373,1747083237085,-235.81743982,0.00011998,2]
[360865374,1747083252769,-257.58890794,0.00011998,2]
[360865375,1747083252798,-6.96281057,0.00011998,2]
[360865376,1747083267101,-430.78946587,0.00011998,2]
[360865377,1747083283257,-300.0,0.00011997,2]
[360865378,1747083298855,-200.0,0.00011997,2]
[360865379,1747083298883,-38.23859776,0.00011997,2]
[360865380,1747083312054,-300.0,0.00011996,2]
[360865381,1747083312076,-53.07804938,0.00011996,2]
[360865382,1747083390493,-157.56917461,0.00011897,2]
[360865383,1747083432765,28143.0,0.000118,2]
[360865384,1747083484456,-47.25187607,0.00011897,2]
[360865385,1747083484478,-104.74812393,0.00011946,2]
[360865386,1747083492072,-95.25187607,0.00011946,2]
[360865387,1747083641057,-166.82837679,0.00011992,2]
[360865388,1747083642066,-20.05187497,0.00011992,2]
[360865389,1747083642099,-131.94812503,0.00011992,2]
[360865390,1747083657743,-260.88918131,0.00011992,2]
[360865391,1747083673618,-107.16269366,0.00011992,2]
[360865392,1747083673651,-299.00946565,0.00011992,2]
[360865393,1747083687151,-200.99053435,0.00011992,2]
[360865394,1747083687183,-120.52960146,0.00011992,2]
[360865395,1747083703409,-170.50786954,0.00011992,2]
[360865396,1747083717146,-208.962529,0.00011992,2]
[360865397,1747083717180,-84.53462412,0.00011992,2]
[360865398,1747083732162,-221.69386892,0.00011991,2]
[360865399,1747083747679,-78.30613108,0.00011991,2]
[360865400,1747083747710,-146.28,0.00011992,2]
[360865401,1747083762141,-159.76,0.00011991,2]
[360865402,1747083776219,527.22,0.00010386,2]
[360865403,1747083777079,-212.89363672,0.00011991,2]
[360865404,1747083792172,-127.34636328,0.00011991,2]
[360865405,1747083792202,-66.96224016,0.00011991,2]
[360865406,1747083807656,-118.93157045,0.00011991,2]
[360865407,1747083807689,-127.17384737,0.00011991,2]
[360865408,1747083822117,-253.89458218,0.00011991,2]
[360865409,1747083837037,-118.93157045,0.00011991,2]
[360865410,1747083837068,-104.91981095,0.00011991,2]
[360865411,1747083852104,-152.30856921,0.0001199,2]
[360865412,1747083867051,-147.69143079,0.0001199,2]
[360865413,1747083873211,46.61418317,0.0001199,2]
[360865414,1747083882120,-244.04296654,0.0001199,2]
[360865415,1747083897053,-209.34285029,0.0001199,2]
[360865416,1747083897082,-36.46938738,0.0001199,2]
[360865417,1747083913954,-152.83507103,0.00011989,2]
[360865418,1747083925564,150.0,0.00013699,7]
[360865419,1747083927027,-294.32985794,0.00011989,2]
[360865420,1747084022068,-284.77148748,0.00011987,2]
[360865421,1747084033248,-15.22851252,0.00011987,2]
[360865434,1747084119316,-244.80819295,0.00011987,2]
[360865435,1747084126547,-255.19180705,0.00011987,2]
[360865436,1747084126577,-11.36737752,0.00011987,2]
[360865441,1747084137098,-162.01,0.00011987,2]
[360865442,1747084152196,-300.0,0.00011986,2]
[360865447,1747084167591,-299.25104553,0.00011987,2]
[360865462,1747084231322,-366.80351953,0.00011986,2]
[360865463,1747084231333,-833.19648047,0.00011986,2]
[360865464,1747084231343,-27.37157695,0.00011987,2]
[360865465,1747084231353,-500.0,0.00011987,2]
[360865466,1747084231362,-500.0,0.00011987,2]
[360865467,1747084231371,-500.0,0.00011987,2]
[360865468,1747084231381,-500.0,0.00011987,2]
[360865469,1747084231391,-167.34985506,0.00011987,2]
[360865470,1747084231400,-500.0,0.00011987,2]
[360865471,1747084231410,-500.0,0.00011987,2]
[360865472,1747084231420,-200.0,0.00011988,2]
[360865473,1747084231429,-200.0,0.0001199,2]
[360865474,1747084231439,-200.0,0.00012057,2]
[360865475,1747084231449,-1181.01,0.00012245,2]
[360865476,1747084231458,-327.32,0.00012266,2]
[360865477,1747084231469,-322.25,0.00012274,2]
[360865478,1747084231479,-571.29,0.00012356,2]
[360865479,1747084231489,-250.0,0.00012367,2]
[360865480,1747084231498,-1596.15,0.00012451,2]
[360865481,1747084231507,-383.85,0.00012509,2]
[360865482,1747084231517,-582.2,0.00012571,2]
[360865483,1747084231527,-914.35,0.000126,2]
[360865484,1747084231537,-527.22,0.0001265,2]
[360865485,1747084231547,-1000.0,0.00012747,2]
[360865486,1747084231558,-457.29,0.00012841,2]
[360865487,1747084231569,-457.29,0.00012841,2]
[360865488,1747084231579,-207.4,0.00013014,2]
[360865489,1747084231588,-150.0,0.00013035,2]
[360865490,1747084231598,-150.0,0.00013035,2]
[360865491,1747084231608,-150.0,0.00013035,2]
[360865492,1747084231618,-150.0,0.00013035,2]
[360865493,1747084231627,-447.4,0.00013035,2]
[360865494,1747084231638,-150.0,0.00013035,2]
[360865495,1747084231648,-150.12,0.00013035,2]
[360865496,1747084231659,-352.8,0.00013035,2]
[360865497,1747084231670,-325.06,0.00013035,2]
[360865498,1747084231680,-150.12,0.00013035,2]
[360865499,1747084231689,-352.8,0.00013035,2]
[360865500,1747084231699,-318.32,0.00013035,2]
[360865501,1747084231709,-457.29,0.00013041,2]
[360865502,1747084231718,-162.56,0.00013078,2]
[360865503,1747084231727,-352.8,0.00013078,2]
[360865504,1747084231736,-452.54,0.00013078,2]
[360865505,1747084231745,-150.12,0.00013078,2]
[360865506,1747084231754,-162.56,0.000131,2]
[360865507,1747084231763,-150.0,0.000131,2]
[360865508,1747084231773,-452.54,0.000131,2]
[360865509,1747084231782,-352.8,0.000131,2]
[360865510,1747084231791,-150.0,0.000131,2]
[360865511,1747084231800,-150.12,0.000131,2]
[360865512,1747084231811,-162.56,0.000131,2]
[360865513,1747084231822,-452.54,0.000131,2]
[360865514,1747084231835,-352.8,0.000131,2]
[360865515,1747084231844,-150.12,0.000131,2]
[360865516,1747084231855,-150.0,0.000131,2]
[360865517,1747084231866,-150.0,0.000131,2]
[360865518,1747084231875,-1680.0,0.00013185,2]
[360865519,1747084231885,-200.0,0.00013186,2]
[360865520,1747084231895,-200.0,0.00013188,2]
[360865521,1747084231904,-150.12,0.000132,2]
[360865522,1747084231914,-162.56,0.000132,2]
[360865523,1747084231923,-452.54,0.000132,2]
[360865524,1747084231933,-352.8,0.000132,2]
[360865525,1747084231943,-1000.0,0.00013524,2]
[360865526,1747084231953,-965.48193315,0.00013598,2]
[360865527,1747084231962,-173.2500639,0.00013598,2]
[360865528,1747084231972,-1569.28576377,0.00013598,2]
[360865529,1747084231982,-200.0,0.00013598,2]
[360865530,1747084231992,-523.4043,0.00013608,2]
[360865531,1747084232001,-167.18774387,0.00013617,2]
[360865532,1747084232010,-150.0,0.00013631,2]
[360865533,1747084232021,-798.0,0.00013677,2]
[360865534,1747084232030,-395.825,0.00013677,2]
[360865535,1747084232039,-918.0,0.00013677,2]
[360865536,1747084232049,-154.0,0.00013677,2]
[360865537,1747084232059,-5939.0,0.00013677,2]
[360865538,1747084232068,-268.06465187,0.00013698,2]
[360865539,1747084232077,-5674.46241174,0.00013698,2]
[360865540,1747084232090,-4023.95365989,0.00013698,2]
[360865541,1747084232102,-30577.82419999,0.00013698,2]
[360865542,1747084232113,-1105.0101586,0.00013698,2]
[360865543,1747084232125,-1074.2943,0.00013698,2]
[360865544,1747084232279,-1077.9794713,0.00013698,2]
[360865596,1747084237349,-1146.0,0.00013677,2]
[360865597,1747084237359,-2125.2728786,0.00013698,2]
[360865598,1747084237406,-10292.544,0.00013698,2]
[360865600,1747084237728,-375.11531255,0.00013698,2]
[360865601,1747084237739,-1151.76373832,0.00013698,2]
[360865614,1747084239451,-37098.2229118,0.00013698,2]
[360865616,1747084239462,-1650.46164395,0.00013698,2]
[360865633,1747084240155,-835.94425116,0.00013698,2]
[360865634,1747084240169,-1284.10086145,0.00013698,2]
[360865635,1747084240182,-4462.63000448,0.00013698,2]
[360865639,1747084240406,-39029.054,0.00013698,2]
[360865640,1747084240444,-1076.21094039,0.00013698,2]
[360865642,1747084242962,-692.88804106,0.00013698,2]
[360865643,1747084243125,-535.43704919,0.00013698,2]
[360865648,1747084245565,-5139.5,0.00013698,2]
[360865649,1747084245587,-686.1285,0.00013698,2]
[360865650,1747084245606,-720.0,0.00013698,2]
[360865651,1747084245729,-428.74501854,0.00013698,2]
[360865654,1747084292813,-318.78345407,0.00011887,2]
[360865655,1747084303432,-300.0,0.00011887,2]
[360865656,1747084317941,-274.40376166,0.00011887,2]
[360865657,1747084332291,-175.59623834,0.00011887,2]
[360865658,1747084347826,-38.79814593,0.00011887,2]
[360865659,1747084347850,-120.96185407,0.00011936,2]
[360865660,1747084362296,-79.03814593,0.00011936,2]
[360865661,1747084588178,2000.34110781,0.00012,5]
[360865662,1747084693874,235.24,0.00011,2]
[360865663,1747084734067,-170.7393119,0.00011922,2]
[360865664,1747084737803,-440.24,0.00011922,2]
[360865665,1747084752694,-298.7806881,0.00011922,2]
[360865666,1747084810738,170.43486632,0.00011921,2]
[360865667,1747084826977,320702.0,0.00028,120]
[360865668,1747084851429,-47.34585568,0.00011921,2]
[360865669,1747084883988,474.49,0.00010597,2]
[360865670,1747085089184,150.0,0.00013699,7]
[360865677,1747085241393,-170.7393119,0.00011918,2]
[360865678,1747085241425,-96.08246848,0.00011947,2]
[360865689,1747085255822,-186.15821962,0.00011947,2]
[360865690,1747085271373,-200.78431375,0.00011947,2]
[360865691,1747085285887,-147.11669389,0.00011947,2]
[360865692,1747085285920,-35.399523,0.00011947,2]
[360865693,1747085346420,-300.0,0.00011946,2]
[360865694,1747085346450,-45.68035737,0.00011946,2]
[360865721,1747085431619,-1200.0,0.00011946,2]
[360865722,1747085431629,-200.0,0.00011946,2]
[360865723,1747085431639,-302.22065027,0.00011946,2]
[360865724,1747085431648,-246.46467112,0.00011946,2]
[360865725,1747085431659,-31.12627487,0.00011947,2]
[360865726,1747085431671,-32358.05672273,0.00011947,2]
[360865727,1747085431681,-200.0,0.00011948,2]
[360865728,1747085431691,-200.0,0.00012052,2]
[360865729,1747085431701,-302.15478082,0.00012447,2]
[360865730,1747085431710,-172.03,0.00012481,2]
[360865731,1747085431720,-410.78,0.00012516,2]
[360865732,1747085431729,-12663.50555589,0.00012547,2]
[360865733,1747085431746,-1757.03444411,0.00012547,2]
[360865734,1747085431756,-206.02,0.00012562,2]
[360865735,1747085431769,-254.1,0.00012568,2]
[360865736,1747085431782,-1000.0,0.00012582,2]
[360865737,1747085431792,-474.49,0.00012861,2]
[360865738,1747085431802,-500.0,0.00012877,2]
[360865739,1747085431811,-302.1547808,0.00012973,2]
[360865740,1747085431821,-150.0,0.00012999,2]
[360865741,1747085431831,-452.54,0.00013,2]
[360865742,1747085431840,-840.94,0.00013,2]
[360865743,1747085431850,-150.12,0.00013,2]
[360865744,1747085431859,-352.8,0.00013,2]
[360865745,1747085431869,-874.46,0.00013,2]
[360865746,1747085431878,-162.56,0.00013,2]
[360865747,1747085431887,-207.4,0.00013014,2]
[360865748,1747085431897,-904.82,0.00013035,2]
[360865749,1747085431907,-162.56,0.00013035,2]
[360865750,1747085431917,-150.12,0.00013035,2]
[360865752,1747085431926,-300.16,0.00013035,2]
[360865754,1747085431935,-452.54,0.00013035,2]
[360865756,1747085431944,-150.12,0.000131,2]
[360865758,1747085431953,-352.8,0.000131,2]
[360865760,1747085431962,-95.40897509,0.000131,2]
[360865763,1747085431985,-67.15102491,0.000131,2]
[360865765,1747085431994,-350.34554276,0.000131,2]
[360865768,1747085432014,-102.19445724,0.000131,2]
[360865770,1747085432024,-452.54,0.000131,2]
[360865773,1747085432033,-162.56,0.000131,2]
[360865775,1747085432043,-150.12,0.000131,2]
[360865777,1747085432052,-150.12,0.000131,2]
[360865778,1747085432062,-452.54,0.000131,2]
[360865780,1747085432071,-73.74191893,0.000131,2]
[360865817,1747085437528,-251.34808107,0.000131,2]
[360865818,1747085437538,-904.9,0.000131,2]
[360865819,1747085437548,-382.13,0.000131,2]
[360865820,1747085437557,-150.12,0.000131,2]
[360865821,1747085437567,-9727.1641943,0.000131,2]
[360865822,1747085437577,-7030.81482557,0.000131,2]
[360865823,1747085437589,-2696.34936861,0.000131,2]
[360865824,1747085437598,-9727.16419418,0.000131,2]
[360865825,1747085437607,-9727.16419418,0.00013107,2]
[360865826,1747085437617,-200.0,0.0001311,2]
[360865827,1747085437626,-200.0,0.00013141,2]
[360865828,1747085437635,-1680.0,0.00013141,2]
[360865829,1747085437645,-9354.88893811,0.00013176,2]
[360865830,1747085437772,-372.27525607,0.00013176,2]
[360865831,1747085437781,-150.62,0.00013221,2]
[360865832,1747085437791,-5962.11268392,0.00013245,2]
[360865833,1747085437817,-3765.05151026,0.00013245,2]
[360865834,1747085437826,-5725.89799039,0.00013314,2]
[360865835,1747085437837,-1414.48647876,0.00013314,2]
[360865836,1747085437849,-2586.77972503,0.00013314,2]
[360865837,1747085437858,-500.0,0.00013342,2]
[360865838,1747085437867,-150.0,0.0001337,2]
[360865839,1747085437877,-2227.51007191,0.00013383,2]
[360865840,1747085437889,-5534.73604492,0.00013383,2]
[360865862,1747085439713,-1964.91807735,0.00013383,2]
[360865863,1747085439722,-150.0,0.00013427,2]
[360865864,1747085439731,-150.0,0.00013428,2]
[360865865,1747085439740,-150.0,0.00013432,2]
[360865866,1747085439750,-150.0,0.00013445,2]
[360865867,1747085439759,-150.0,0.00013447,2]
[360865868,1747085439770,-3000.20933074,0.00013452,2]
[360865869,1747085439827,-264.03639913,0.00013452,2]
[360865870,1747085439839,-2728.4203587,0.00013452,2]
[360865871,1747085440158,-503.373428,0.00013452,2]
[360865872,1747085440378,-406.99,0.00013452,2]
[360865873,1747085440390,-2824.13467761,0.00013452,2]
[360865875,1747085440399,-150.0,0.00013452,2]
[360865876,1747085440409,-150.0,0.00013454,2]
[360865877,1747085440418,-150.0,0.00013457,2]
[360865878,1747085440428,-373.12280385,0.00013458,2]
[360865879,1747085440437,-150.0,0.00013459,2]
[360865880,1747085440446,-150.0,0.00013468,2]
[360865881,1747085440456,-150.0,0.00013481,2]
[360865882,1747085440465,-150.0,0.00013481,2]
[360865883,1747085440474,-150.0,0.00013485,2]